[Event "DFMMLV 2019"]
[Site "Braunfels"]
[Date "2019.06.21"]
[Round "3.4"]
[White "Gheng, Simona"]
[Black "Ankerst, Milka"]
[Result "1-0"]
[ECO "B20"]
[WhiteElo "1991"]
[BlackElo "2005"]
[Annotator "NA"]
[PlyCount "59"]
[EventDate "2019.06.20"]
[EventType "team-tourn"]
[EventCountry "GER"]
[SourceTitle "playchess.com"]
[Source "ChessBase"]
[SourceQuality "1"]
[WhiteTeam "Wuerttemberg 1"]
[BlackTeam "Bayern 1"]
[TimeControl "40/5400+30:1800+30"]

1. e4 {[%emt 0:00:00]} c5 {[%emt 0:00:00]} 2. c4 {[%emt 0:00:00]} Nc6 {[%emt 0:00:32]} 3. Nc3 {[%emt 0:00:02]} g6 {[%emt 0:01:02]} 4. g3 {[%emt 0:00:15]} Bg7 {[%emt 0:00:14]} 5. Bg2 {[%emt 0:00:31]} d6 {[%emt 0:00:53]} 6. d3 {[%emt 0:00:33]} e6 {[%emt 0:01:22]} 7. Nge2 {[%emt 0:00:13]} Nge7 {[%emt 0:00:39]} 8. O-O {[%emt 0:00:18]} O-O {[%emt 0:00:48]} 9. a3 {[%emt 0:00:13]} Rb8 {[%emt 0:03:40]} 10. Rb1 {[%emt 0:00:09]} a6 {[%emt 0:12:54]} 11. b4 {[%emt 0:01:56]} cxb4 {[%emt 0:06:13]} 12. axb4 {[%emt 0:00:15]} b5 {[%emt 0:00:49]} 13. cxb5 {[%emt 0:03:18]} axb5 {[%emt 0:00:31]} 14. d4 {[%emt 0:01:02]} Qd7 {[%emt 0:06:54]} 15. Be3 {[%emt 0:04:02]} f5 {[%emt 0:02:29]} 16. d5 {[%emt 0:03:03]} exd5 {[%emt 0:07:34]} 17. exf5 {[%emt 0:02:44]} Qxf5 {[%emt 0:03:21]} 18. Nxd5 {[%emt 0:01:15]} Rd8 {[%emt 0:04:15]} 19. Bb6 {[%emt 0:05:57]} Rd7 {[%emt 0:00:59]} 20. Nef4 {[%emt 0:03:48]} Nxd5 {[%emt 0:07:22]} 21. Bxd5+ {[%emt 0:05:17]} Kh8 {[%emt 0:00:34]} 22. Bxc6 {[%emt 0:00:16]} Rxb6 {[%emt 0:01:17]} 23. Bxd7 {[%emt 0:00:05]} Bxd7 {[%emt 0:01:24]} 24. Qe2 {[%emt 0:06:00]} h6 {[%emt 0:02:15]} 25. Rfd1 {[%emt 0:01:12]} Ra6 {[%emt 0:01:07]} 26. Rbc1 {[%emt 0:01:16]} Qf7 {[%emt 0:08:37]} 27. Rc7 {[%emt 0:02:55]} Be5 {[%emt 0:02:32]} 28. Rxd7 {[%emt 0:01:16]} Qxd7 {[%emt 0:03:10]} 29. Nxg6+ {[%emt 0:00:46]} Kg7 {[%emt 0:00:10]} 30. Nxe5 1-0

[Event "DFMMLV 2019"]
[Site "Braunfels"]
[Date "2019.06.21"]
[Round "3.5"]
[White "Mehling, Katharina"]
[Black "Zeller, Elisa"]
[Result "0-1"]
[ECO "C07"]
[WhiteElo "1974"]
[BlackElo "1953"]
[Annotator "NA"]
[PlyCount "64"]
[EventDate "2019.06.20"]
[EventType "team-tourn"]
[EventCountry "GER"]
[SourceTitle "playchess.com"]
[Source "ChessBase"]
[SourceQuality "1"]
[WhiteTeam "Bayern 1"]
[BlackTeam "Wuerttemberg 1"]
[TimeControl "40/5400+30:1800+30"]

1. e4 {[%emt 0:00:00]} e6 {[%emt 0:00:00]} 2. d4 {[%emt 0:00:00]} d5 {[%emt 0:00:00]} 3. Nd2 {[%emt 0:00:00]} c5 {[%emt 0:00:13]} 4. exd5 {[%emt 0:00:02]} Qxd5 {[%emt 0:00:08]} 5. Ngf3 {[%emt 0:00:11]} cxd4 {[%emt 0:00:05]} 6. Bc4 {[%emt 0:00:07]} Qd7 {[%emt 0:00:13]} 7. O-O {[%emt 0:00:09]} Nc6 {[%emt 0:00:14]} 8. Nb3 {[%emt 0:00:11]} a6 {[%emt 0:00:07]} 9. a4 {[%emt 0:00:15]} Nf6 {[%emt 0:00:22]} 10. Qe2 {[%emt 0:00:10]} Qc7 {[%emt 0:02:37]} 11. Nbxd4 {[%emt 0:06:33]} Nxd4 {[%emt 0:04:41]} 12. Nxd4 {[%emt 0:00:08]} Be7 {[%emt 0:01:06]} 13. b3 {[%emt 0:03:47]} O-O {[%emt 0:01:12]} 14. Bb2 {[%emt 0:01:00]} e5 {[%emt 0:03:07]} 15. Nf3 {[%emt 0:02:37]} e4 {[%emt 0:00:14]} 16. Nd2 {[%emt 0:03:28]} Bg4 {[%emt 0:00:36]} 17. Qe3 {[%emt 0:01:56]} Bf5 {[%emt 0:01:01]} 18. Qg5 {[%emt 0:07:51]} Bg6 {[%emt 0:00:38]} 19. Rfe1 {[%emt 0:02:43]} e3 {[%emt 0:19:27]} 20. Qxe3 {[%emt 0:14:40]} Ng4 {[%emt 0:00:18]} 21. Qxe7 {[%emt 0:22:39]} Qxh2+ {[%emt 0:00:05]} 22. Kf1 {[%emt 0:00:03]} Rae8 {[%emt 0:00:09]} 23. Qxf8+ {[%emt 0:05:00]} Rxf8 {[%emt 0:00:06]} 24. Nf3 {[%emt 0:02:29]} Qh1+ {[%emt 0:00:45]} 25. Ng1 {[%emt 0:00:07]} Nh2+ {[%emt 0:01:34]} 26. Ke2 {[%emt 0:00:04]} Qxg2 {[%emt 0:00:22]} 27. Kd2 {[%emt 0:01:31]} Qxf2+ {[%emt 0:00:45]} 28. Re2 {[%emt 0:00:13]} Qf4+ {[%emt 0:01:38]} 29. Ke1 {[%emt 0:01:16]} Ng4 {[%emt 0:04:38]} 30. Bc3 {[%emt 0:04:09]} Qg3+ {[%emt 0:03:05]} 31. Kd2 {[%emt 0:00:08]} Rd8+ {[%emt 0:00:20]} 32. Kc1 {[%emt 0:00:27]} Qxc3 {[%emt 0:00:28]} 0-1

[Event "DFMMLV 2019"]
[Site "Braunfels"]
[Date "2019.06.21"]
[Round "3.6"]
[White "Heil, Marina"]
[Black "Braun, Kristin"]
[Result "1/2-1/2"]
[ECO "B20"]
[WhiteElo "1979"]
[BlackElo "1895"]
[Annotator "NA"]
[PlyCount "51"]
[EventDate "2019.06.20"]
[EventType "team-tourn"]
[EventCountry "GER"]
[SourceTitle "playchess.com"]
[Source "ChessBase"]
[SourceQuality "1"]
[WhiteTeam "Wuerttemberg 1"]
[BlackTeam "Bayern 1"]
[TimeControl "40/5400+30:1800+30"]

1. e4 {[%emt 0:00:00]} c5 {[%emt 0:00:00]} 2. d3 {[%emt 0:00:00]} a6 {[%emt 0:00:00]} 3. f4 {[%emt 0:00:00]} b5 {[%emt 0:00:04]} 4. a3 {[%emt 0:00:26]} Bb7 {[%emt 0:00:11]} 5. Nf3 {[%emt 0:00:21]} e6 {[%emt 0:00:17]} 6. Be2 {[%emt 0:00:26]} d5 {[%emt 0:00:15]} 7. Nbd2 {[%emt 0:03:22]} Nf6 {[%emt 0:09:06]} 8. e5 {[%emt 0:02:12]} Ng4 {[%emt 0:00:58]} 9. Nf1 {[%emt 0:00:49]} Be7 {[%emt 0:07:13]} 10. h3 {[%emt 0:01:58]} Nh6 {[%emt 0:00:25]} 11. Be3 {[%emt 0:01:20]} Nf5 {[%emt 0:02:18]} 12. Bf2 {[%emt 0:00:32]} Nh4 {[%emt 0:09:05]} 13. Rg1 {[%emt 0:05:30]} Nxf3+ {[%emt 0:02:56]} 14. Bxf3 {[%emt 0:00:11]} Nc6 {[%emt 0:03:31]} 15. Qe2 {[%emt 0:07:34]} a5 {[%emt 0:09:36]} 16. Nd2 {[%emt 0:05:04]} a4 {[%emt 0:00:37]} 17. c3 {[%emt 0:08:48]} b4 {[%emt 0:04:06]} 18. Rb1 {[%emt 0:07:28]} Qa5 {[%emt 0:05:09]} 19. c4 {[%emt 0:01:46]} Nd4 {[%emt 0:02:27]} 20. Bxd4 {[%emt 0:01:36]} cxd4 {[%emt 0:00:25]} 21. Kf2 {[%emt 0:02:07]} O-O {[%emt 0:02:34]} 22. Rgd1 {[%emt 0:08:48]} Rab8 {[%emt 0:02:14]} 23. axb4 {[%emt 0:02:20]} Bxb4 {[%emt 0:01:14]} 24. Ra1 {[%emt 0:01:08]} Bxd2 {[%emt 0:04:07]} 25. Rxd2 {[%emt 0:02:52]} dxc4 {[%emt 0:02:03]} 26. dxc4 {[%emt 0:00:57]} 1/2-1/2

[Event "DFMMLV 2019"]
[Site "Braunfels"]
[Date "2019.06.21"]
[Round "3.7"]
[White "Woniak, Katarzyna"]
[Black "Valkova, Anzhelika"]
[Result "1-0"]
[ECO "A05"]
[WhiteElo "1915"]
[BlackElo "1944"]
[Annotator "NA"]
[PlyCount "97"]
[EventDate "2019.06.20"]
[EventType "team-tourn"]
[EventCountry "GER"]
[SourceTitle "playchess.com"]
[Source "ChessBase"]
[SourceQuality "1"]
[WhiteTeam "Bayern 1"]
[BlackTeam "Wuerttemberg 1"]
[TimeControl "40/5400+30:1800+30"]

1. Nf3 {[%emt 0:00:00]} Nf6 {[%emt 0:00:00]} 2. g3 {[%emt 0:00:13]} g6 {[%emt 0:00:00]} 3. Bg2 {[%emt 0:00:03]} Bg7 {[%emt 0:00:00]} 4. O-O {[%emt 0:00:05]} O-O {[%emt 0:00:00]} 5. c4 {[%emt 0:04:35]} d6 {[%emt 0:00:00]} 6. Nc3 {[%emt 0:00:19]} c5 {[%emt 0:00:38]} 7. d3 {[%emt 0:03:26]} Nc6 {[%emt 0:01:47]} 8. Rb1 {[%emt 0:00:51]} Nd7 {[%emt 0:06:53]} 9. Nd5 {[%emt 0:02:34]} e6 {[%emt 0:00:52]} 10. Ne3 {[%emt 0:00:30]} Rb8 {[%emt 0:00:23]} 11. Nc2 {[%emt 0:04:43]} b5 {[%emt 0:03:56]} 12. cxb5 {[%emt 0:03:12]} Rxb5 {[%emt 0:00:05]} 13. d4 {[%emt 0:02:28]} cxd4 {[%emt 0:01:48]} 14. Nfxd4 {[%emt 0:00:48]} Nxd4 {[%emt 0:00:15]} 15. Nxd4 {[%emt 0:00:17]} Rb6 {[%emt 0:01:22]} 16. Be3 {[%emt 0:07:50]} Ne5 {[%emt 0:04:57]} 17. Nb3 {[%emt 0:04:31]} Ra6 {[%emt 0:01:12]} 18. a3 {[%emt 0:00:24]} Nc4 {[%emt 0:03:36]} 19. Bd4 {[%emt 0:01:38]} e5 {[%emt 0:00:06]} 20. Bc3 {[%emt 0:01:09]} Be6 {[%emt 0:00:15]} 21. Nd2 {[%emt 0:02:42]} Qb6 {[%emt 0:05:00]} 22. Nxc4 {[%emt 0:07:28]} Bxc4 {[%emt 0:00:05]} 23. Bb4 {[%emt 0:00:34]} Rd8 {[%emt 0:03:22]} 24. Rc1 {[%emt 0:04:52]} Qb5 {[%emt 0:01:36]} 25. Re1 {[%emt 0:00:06]} Bh6 {[%emt 0:15:47]} 26. e3 {[%emt 0:07:31]} d5 {[%emt 0:03:04]} 27. b3 {[%emt 0:08:01]} Bd3 {[%emt 0:00:15]} 28. Rc5 {[%emt 0:00:17]} Qb6 {[%emt 0:09:54]} 29. Qxd3 {[%emt 0:00:05]} e4 {[%emt 0:00:28]} 30. Qc2 {[%emt 0:03:12]} Bf8 {[%emt 0:04:06]} 31. Bf1 {[%emt 0:06:30]} Bxc5 {[%emt 0:00:06]} 32. Bxc5 {[%emt 0:00:11]} Qa5 {[%emt 0:01:47]} 33. Bb4 {[%emt 0:04:09]} Qb6 {[%emt 0:00:06]} 34. Bxa6 {[%emt 0:00:05]} Qxa6 {[%emt 0:00:04]} 35. Rc1 {[%emt 0:00:47]} Qb5 {[%emt 0:05:44]} 36. Qc7 {[%emt 0:03:48]} Ra8 {[%emt 0:03:09]} 37. Qe5 {[%emt 0:01:08]} Re8 {[%emt 0:01:19]} 38. Qd4 {[%emt 0:01:08]} Qd7 {[%emt 0:01:29]} 39. Bc3 {[%emt 0:01:29]} Kf8 {[%emt 0:00:11]} 40. Qg7+ {[%emt 0:03:11]} Ke7 {[%emt 0:00:05]} 41. Qxh7 {[%emt 0:32:45]} Qf5 {[%emt 0:36:11]} 42. Qg7 {[%emt 0:04:43]} Ke6 {[%emt 0:03:56]} 43. Bd4 {[%emt 0:02:11]} Kd7 {[%emt 0:01:16]} 44. Bxa7 {[%emt 0:01:32]} Qf3 {[%emt 0:01:37]} 45. Qd4 {[%emt 0:02:08]} Rd8 {[%emt 0:05:35]} 46. Qxd5+ {[%emt 0:00:00]} Ke8 {[%emt 0:00:00]} 47. Qe5+ {[%emt 0:00:00]} Kf8 {[%emt 0:00:00]} 48. Bd4 {[%emt 0:00:00]} Re8 {[%emt 0:00:00]} 49. Bc5+ {[%emt 0:00:00]} 1-0

[Event "DFMMLV 2019"]
[Site "Braunfels"]
[Date "2019.06.21"]
[Round "3.8"]
[White "Noppes, Marina"]
[Black "Spiel, Marianne"]
[Result "1-0"]
[ECO "A46"]
[WhiteElo "1983"]
[BlackElo "1894"]
[Annotator "NA"]
[PlyCount "33"]
[EventDate "2019.06.20"]
[EventType "team-tourn"]
[EventCountry "GER"]
[SourceTitle "playchess.com"]
[Source "ChessBase"]
[SourceQuality "1"]
[WhiteTeam "Wuerttemberg 1"]
[BlackTeam "Bayern 1"]
[TimeControl "40/5400+30:1800+30"]

1. d4 {[%emt 0:00:00]} Nf6 {[%emt 0:00:00]} 2. Nf3 {[%emt 0:00:00]} d5 {[%emt 0:00:15]} 3. c4 {[%emt 0:00:25]} c6 {[%emt 0:02:10]} 4. g3 {[%emt 0:02:48]} Bf5 {[%emt 0:15:54]} 5. Bg2 {[%emt 0:01:38]} Bxb1 {[%emt 0:08:09]} 6. Rxb1 {[%emt 0:01:06]} Qa5+ {[%emt 0:00:14]} 7. Bd2 {[%emt 0:21:41]} Qxa2 {[%emt 0:02:21]} 8. c5 {[%emt 0:01:08]} Ne4 {[%emt 0:05:26]} 9. O-O {[%emt 0:00:09]} Nd7 {[%emt 0:08:41]} 10. Qc2 {[%emt 0:18:44]} Nxd2 {[%emt 0:05:34]} 11. Qxd2 {[%emt 0:09:47]} g6 {[%emt 0:03:50]} 12. Ra1 {[%emt 0:04:28]} Qb3 {[%emt 0:11:57]} 13. Ra3 {[%emt 0:05:13]} Qb5 {[%emt 0:00:54]} 14. Ra5 {[%emt 0:00:22]} Qb3 {[%emt 0:00:31]} 15. Rfa1 {[%emt 0:03:02]} b6 {[%emt 0:00:54]} 16. R1a3 {[%emt 0:01:09]} Qc4 {[%emt 0:01:00]} 17. b3 {[%emt 0:00:15]} 1-0

[Event "DFMMLV 2019"]
[Site "Braunfels"]
[Date "2019.06.21"]
[Round "3.9"]
[White "Hess, Olena"]
[Black "Steinbacher, Claudia"]
[Result "1-0"]
[ECO "B38"]
[WhiteElo "2097"]
[BlackElo "2080"]
[Annotator "NA"]
[PlyCount "77"]
[EventDate "2019.06.20"]
[EventType "team-tourn"]
[EventCountry "GER"]
[SourceTitle "playchess.com"]
[Source "ChessBase"]
[SourceQuality "1"]
[WhiteTeam "NRW"]
[BlackTeam "Sachsen"]
[TimeControl "40/5400+30:1800+30"]

1. Nf3 {[%emt 0:00:00]} Nf6 {[%emt 0:01:04]} 2. c4 {[%emt 0:00:00]} c5 {[%emt 0:00:17]} 3. d4 {[%emt 0:00:17]} cxd4 {[%emt 0:00:48]} 4. Nxd4 {[%emt 0:00:05]} d6 {[%emt 0:01:02]} 5. Nc3 {[%emt 0:00:28]} g6 {[%emt 0:00:20]} 6. e4 {[%emt 0:00:17]} Bg7 {[%emt 0:01:03]} 7. Be2 {[%emt 0:00:16]} Nc6 {[%emt 0:03:26]} 8. Be3 {[%emt 0:00:40]} O-O {[%emt 0:02:22]} 9. O-O {[%emt 0:00:07]} Bd7 {[%emt 0:05:50]} 10. Qd2 {[%emt 0:00:37]} Nxd4 {[%emt 0:03:34]} 11. Bxd4 {[%emt 0:00:10]} Bc6 {[%emt 0:00:23]} 12. f3 {[%emt 0:00:06]} a6 {[%emt 0:07:10]} 13. Rfd1 {[%emt 0:02:09]} Nd7 {[%emt 0:09:07]} 14. Be3 {[%emt 0:01:11]} Rb8 {[%emt 0:00:37]} 15. Rac1 {[%emt 0:06:36]} b5 {[%emt 0:07:50]} 16. cxb5 {[%emt 0:00:39]} Bxb5 {[%emt 0:00:51]} 17. b3 {[%emt 0:05:03]} Nf6 {[%emt 0:03:02]} 18. Nxb5 {[%emt 0:11:39]} axb5 {[%emt 0:00:02]} 19. Qb4 {[%emt 0:00:09]} Qd7 {[%emt 0:03:02]} 20. Rc2 {[%emt 0:00:47]} Rfc8 {[%emt 0:02:38]} 21. Rxc8+ {[%emt 0:03:48]} Qxc8 {[%emt 0:00:01]} 22. Rc1 {[%emt 0:03:32]} Qb7 {[%emt 0:00:16]} 23. a4 {[%emt 0:06:38]} d5 {[%emt 0:12:49]} 24. Qxb5 {[%emt 0:26:19]} Qxb5 {[%emt 0:00:49]} 25. Bxb5 {[%emt 0:00:08]} dxe4 {[%emt 0:00:05]} 26. Bf4 {[%emt 0:01:16]} Rf8 {[%emt 0:02:25]} 27. Bc6 {[%emt 0:09:07]} exf3 {[%emt 0:05:17]} 28. gxf3 {[%emt 0:01:22]} Nh5 {[%emt 0:01:25]} 29. Be3 {[%emt 0:00:32]} Rd8 {[%emt 0:00:46]} 30. Bb7 {[%emt 0:04:16]} Bd4 {[%emt 0:10:29]} 31. Bxd4 {[%emt 0:02:28]} Rxd4 {[%emt 0:00:01]} 32. a5 {[%emt 0:08:27]} Nf4 {[%emt 0:00:49]} 33. Ra1 {[%emt 0:02:50]} Ne2+ {[%emt 0:07:19]} 34. Kf2 {[%emt 0:01:03]} Nc3 {[%emt 0:00:37]} 35. a6 {[%emt 0:01:22]} Nb5 {[%emt 0:00:04]} 36. a7 {[%emt 0:00:56]} Nxa7 {[%emt 0:00:02]} 37. Rxa7 {[%emt 0:00:01]} e6 {[%emt 0:00:07]} 38. Ba6 {[%emt 0:01:07]} Rd2+ {[%emt 0:01:27]} 39. Be2 {[%emt 0:00:03]} 1-0

[Event "DFMMLV 2019"]
[Site "Braunfels"]
[Date "2019.06.21"]
[Round "3.10"]
[White "Arnhold, Steffi"]
[Black "Plass, Mariana-Camelia"]
[Result "0-1"]
[ECO "B98"]
[WhiteElo "1996"]
[BlackElo "2042"]
[Annotator "NA"]
[PlyCount "66"]
[EventDate "2019.06.20"]
[EventType "team-tourn"]
[EventCountry "GER"]
[SourceTitle "playchess.com"]
[Source "ChessBase"]
[SourceQuality "1"]
[WhiteTeam "Sachsen"]
[BlackTeam "NRW"]
[TimeControl "40/5400+30:1800+30"]

1. e4 {[%emt 0:00:00]} c5 {[%emt 0:00:00]} 2. Nc3 {[%emt 0:00:00]} a6 {[%emt 0:00:02]} 3. Nf3 {[%emt 0:00:12]} d6 {[%emt 0:00:26]} 4. d4 {[%emt 0:00:07]} cxd4 {[%emt 0:00:08]} 5. Nxd4 {[%emt 0:00:05]} Nf6 {[%emt 0:00:08]} 6. Bg5 {[%emt 0:00:21]} e6 {[%emt 0:01:02]} 7. f4 {[%emt 0:00:14]} Be7 {[%emt 0:00:16]} 8. Qe2 {[%emt 0:01:32]} Qa5 {[%emt 0:02:51]} 9. O-O-O {[%emt 0:05:19]} Nbd7 {[%emt 0:01:51]} 10. g4 {[%emt 0:02:17]} h6 {[%emt 0:04:27]} 11. Bh4 {[%emt 0:03:46]} g5 {[%emt 0:06:22]} 12. Nb3 {[%emt 0:00:48]} Qc7 {[%emt 0:01:40]} 13. fxg5 {[%emt 0:02:01]} Nh7 {[%emt 0:02:32]} 14. g6 {[%emt 0:02:54]} Bxh4 {[%emt 0:02:44]} 15. gxh7 {[%emt 0:00:16]} Ne5 {[%emt 0:01:31]} 16. Kb1 {[%emt 0:03:41]} Rxh7 {[%emt 0:00:45]} 17. Qd2 {[%emt 0:05:45]} Be7 {[%emt 0:09:34]} 18. Be2 {[%emt 0:02:42]} Bd7 {[%emt 0:00:32]} 19. Nd4 {[%emt 0:02:49]} Bg5 {[%emt 0:03:25]} 20. Qe1 {[%emt 0:01:22]} O-O-O {[%emt 0:00:56]} 21. h4 {[%emt 0:01:46]} Be7 {[%emt 0:02:55]} 22. Rh3 {[%emt 0:02:23]} Kb8 {[%emt 0:00:40]} 23. Qh1 {[%emt 0:06:46]} Rg8 {[%emt 0:02:29]} 24. Rg3 {[%emt 0:03:03]} Qd8 {[%emt 0:02:22]} 25. Nf3 {[%emt 0:13:43]} Rxg4 {[%emt 0:04:58]} 26. Qh3 {[%emt 0:07:43]} Rxg3 {[%emt 0:02:08]} 27. Qxg3 {[%emt 0:00:09]} Nxf3 {[%emt 0:06:12]} 28. Bxf3 {[%emt 0:00:32]} Bc6 {[%emt 0:00:42]} 29. h5 {[%emt 0:02:37]} Qh8 {[%emt 0:01:33]} 30. Rg1 {[%emt 0:01:58]} Kc7 {[%emt 0:00:33]} 31. Be2 {[%emt 0:01:27]} Bf6 {[%emt 0:00:47]} 32. Qe3 {[%emt 0:03:33]} Bd4 {[%emt 0:00:51]} 33. Qg3 Bf6 0-1

[Event "DFMMLV 2019"]
[Site "Braunfels"]
[Date "2019.06.21"]
[Round "3.11"]
[White "Sokalska, Viktorija"]
[Black "Daemering, Katrin"]
[Result "1-0"]
[ECO "B20"]
[WhiteElo "1961"]
[BlackElo "2003"]
[Annotator "NA"]
[PlyCount "81"]
[EventDate "2019.06.20"]
[EventType "team-tourn"]
[EventCountry "GER"]
[SourceTitle "playchess.com"]
[Source "ChessBase"]
[SourceQuality "1"]
[WhiteTeam "NRW"]
[BlackTeam "Sachsen"]
[TimeControl "40/5400+30:1800+30"]

1. e4 {[%emt 0:00:00]} c5 {[%emt 0:00:00]} 2. b3 {[%emt 0:00:00]} d6 {[%emt 0:00:35]} 3. Bb2 {[%emt 0:00:00]} a6 {[%emt 0:00:34]} 4. f4 {[%emt 0:01:01]} e5 {[%emt 0:03:31]} 5. Nf3 {[%emt 0:02:23]} exf4 {[%emt 0:01:25]} 6. Bc4 {[%emt 0:16:53]} Be6 {[%emt 0:08:25]} 7. Qe2 {[%emt 0:01:20]} b5 {[%emt 0:05:44]} 8. Bxe6 {[%emt 0:18:48]} fxe6 {[%emt 0:00:02]} 9. O-O {[%emt 0:00:34]} e5 {[%emt 0:10:02]} 10. Nxe5 {[%emt 0:13:05]} dxe5 {[%emt 0:15:48]} 11. Qh5+ {[%emt 0:00:12]} Kd7 {[%emt 0:00:17]} 12. Qf5+ {[%emt 0:14:57]} Kc6 {[%emt 0:10:39]} 13. Qxe5 {[%emt 0:04:58]} Nf6 {[%emt 0:11:42]} 14. a4 {[%emt 0:03:34]} Bd6 {[%emt 0:11:55]} 15. Qf5 {[%emt 0:02:52]} Qd7 {[%emt 0:04:34]} 16. axb5+ {[%emt 0:00:50]} Kb6 {[%emt 0:00:15]} 17. Qg5 {[%emt 0:00:57]} h6 {[%emt 0:03:33]} 18. Qg6 {[%emt 0:00:56]} Qg4 {[%emt 0:01:20]} 19. Qf7 {[%emt 0:02:07]} Ra7 {[%emt 0:02:23]} 20. Qc4 {[%emt 0:00:35]} axb5 {[%emt 0:00:14]} 21. Qd3 {[%emt 0:00:23]} Rd7 {[%emt 0:02:42]} 22. h3 {[%emt 0:06:34]} Qg3 {[%emt 0:01:53]} 23. Qxg3 {[%emt 0:00:23]} fxg3 {[%emt 0:00:01]} 24. e5 {[%emt 0:00:05]} Bxe5 {[%emt 0:02:26]} 25. Bxe5 {[%emt 0:00:05]} Ne4 {[%emt 0:00:53]} 26. d3 {[%emt 0:00:26]} Ng5 {[%emt 0:00:18]} 27. Bxg3 {[%emt 0:02:16]} Nc6 {[%emt 0:00:02]} 28. Nc3 {[%emt 0:00:45]} Nd4 {[%emt 0:00:10]} 29. Rf2 {[%emt 0:00:52]} Re8 {[%emt 0:00:05]} 30. h4 {[%emt 0:00:17]} Nge6 {[%emt 0:01:23]} 31. Ne4 {[%emt 0:00:19]} Nc7 {[%emt 0:01:10]} 32. Bxc7+ {[%emt 0:01:05]} Rxc7 {[%emt 0:00:03]} 33. Nd6 {[%emt 0:00:46]} Re6 {[%emt 0:00:23]} 34. Nf5 {[%emt 0:00:32]} Nc6 {[%emt 0:00:57]} 35. Ng3 {[%emt 0:01:22]} Nd4 {[%emt 0:00:32]} 36. Ne4 {[%emt 0:00:29]} Rce7 {[%emt 0:00:23]} 37. Rb1 {[%emt 0:01:48]} Nc6 {[%emt 0:00:28]} 38. Rbf1 {[%emt 0:00:21]} Nd4 {[%emt 0:00:11]} 39. Rb1 {[%emt 0:00:32]} Nc6 {[%emt 0:00:02]} 40. Nc3 {[%emt 0:00:18]} Nd4 {[%emt 0:01:04]} 41. Nd5+ {[%emt 0:30:23]} 1-0

[Event "DFMMLV 2019"]
[Site "Braunfels"]
[Date "2019.06.21"]
[Round "3.12"]
[White "Nagel, Verena"]
[Black "Sokalskaja, Elena"]
[Result "0-1"]
[ECO "A48"]
[WhiteElo "2029"]
[BlackElo "2014"]
[Annotator "NA"]
[PlyCount "84"]
[EventDate "2019.06.20"]
[EventType "team-tourn"]
[EventCountry "GER"]
[SourceTitle "playchess.com"]
[Source "ChessBase"]
[SourceQuality "1"]
[WhiteTeam "Sachsen"]
[BlackTeam "NRW"]
[TimeControl "40/5400+30:1800+30"]

1. d4 {[%emt 0:00:00]} Nf6 {[%emt 0:00:00]} 2. Nf3 {[%emt 0:00:00]} g6 {[%emt 0:00:00]} 3. e3 {[%emt 0:00:00]} Bg7 {[%emt 0:00:00]} 4. b3 {[%emt 0:00:09]} c5 {[%emt 0:00:00]} 5. Bd3 {[%emt 0:00:19]} Nc6 {[%emt 0:00:11]} 6. Bb2 {[%emt 0:00:17]} O-O {[%emt 0:00:07]} 7. O-O {[%emt 0:00:45]} cxd4 {[%emt 0:06:11]} 8. exd4 {[%emt 0:00:18]} d5 {[%emt 0:01:29]} 9. Nbd2 {[%emt 0:00:14]} Nb4 {[%emt 0:01:29]} 10. Be2 {[%emt 0:00:41]} Bf5 {[%emt 0:00:08]} 11. c3 {[%emt 0:01:34]} Nd3 {[%emt 0:04:03]} 12. Bxd3 {[%emt 0:01:49]} Bxd3 {[%emt 0:00:02]} 13. Re1 {[%emt 0:00:07]} Rc8 {[%emt 0:03:08]} 14. Ne5 {[%emt 0:02:35]} Bf5 {[%emt 0:04:29]} 15. g4 {[%emt 0:06:58]} Be6 {[%emt 0:00:21]} 16. g5 {[%emt 0:03:55]} Nh5 {[%emt 0:00:49]} 17. Qf3 {[%emt 0:01:33]} b5 {[%emt 0:07:51]} 18. Ba3 {[%emt 0:03:25]} Rc7 {[%emt 0:03:29]} 19. Bc5 {[%emt 0:02:17]} Qc8 {[%emt 0:00:14]} 20. b4 {[%emt 0:00:22]} f6 {[%emt 0:04:36]} 21. gxf6 {[%emt 0:02:33]} Rxf6 {[%emt 0:03:04]} 22. Qd3 {[%emt 0:03:01]} Nf4 {[%emt 0:00:23]} 23. Qxb5 {[%emt 0:00:35]} Nh3+ {[%emt 0:00:03]} 24. Kh1 {[%emt 0:00:14]} Nxf2+ {[%emt 0:10:26]} 25. Kg1 {[%emt 0:00:07]} Nh3+ {[%emt 0:05:35]} 26. Kh1 {[%emt 0:02:11]} Nf2+ {[%emt 0:04:11]} 27. Kg1 {[%emt 0:00:08]} Bh6 {[%emt 0:09:58]} 28. Nf1 {[%emt 0:12:39]} Nh3+ {[%emt 0:03:02]} 29. Kh1 {[%emt 0:00:07]} Bf5 {[%emt 0:01:30]} 30. Ng3 {[%emt 0:08:31]} Be4+ {[%emt 0:01:42]} 31. Nxe4 {[%emt 0:04:15]} dxe4 {[%emt 0:00:04]} 32. Rf1 {[%emt 0:01:37]} Nf2+ {[%emt 0:02:27]} 33. Rxf2 {[%emt 0:06:44]} Rxf2 {[%emt 0:00:03]} 34. d5 {[%emt 0:03:28]} e3 {[%emt 0:00:47]} 35. Nd3 {[%emt 0:05:16]} Qh3 {[%emt 0:09:27]} 36. Nxf2 {[%emt 0:00:11]} Qf3+ {[%emt 0:00:03]} 37. Kg1 {[%emt 0:00:10]} Qxf2+ {[%emt 0:00:06]} 38. Kh1 {[%emt 0:00:04]} Bf4 {[%emt 0:00:12]} 39. Qb8+ {[%emt 0:01:58]} Kf7 {[%emt 0:00:09]} 40. Qe8+ Kg7 41. Bd4+ Kh6 42. Qf8+ Kh5 0-1

[Event "DFMMLV 2019"]
[Site "Braunfels"]
[Date "2019.06.21"]
[Round "3.13"]
[White "Schmidt, Andrea"]
[Black "Just, Anita"]
[Result "1/2-1/2"]
[ECO "C01"]
[WhiteElo "2006"]
[BlackElo "1866"]
[Annotator "NA"]
[PlyCount "65"]
[EventDate "2019.06.20"]
[EventType "team-tourn"]
[EventCountry "GER"]
[SourceTitle "playchess.com"]
[Source "ChessBase"]
[SourceQuality "1"]
[WhiteTeam "NRW"]
[BlackTeam "Sachsen"]
[TimeControl "40/5400+30:1800+30"]

1. e4 {[%emt 0:00:00]} e6 {[%emt 0:00:00]} 2. d4 {[%emt 0:00:00]} d5 {[%emt 0:00:00]} 3. exd5 {[%emt 0:00:00]} exd5 {[%emt 0:00:00]} 4. Nf3 {[%emt 0:01:59]} Nc6 {[%emt 0:01:04]} 5. Bb5 {[%emt 0:04:07]} Bd6 {[%emt 0:02:30]} 6. c3 {[%emt 0:06:01]} Nge7 {[%emt 0:02:54]} 7. Bg5 {[%emt 0:02:45]} f6 {[%emt 0:03:20]} 8. Bh4 {[%emt 0:02:18]} Bg4 {[%emt 0:03:00]} 9. Bg3 {[%emt 0:01:01]} Qd7 {[%emt 0:03:32]} 10. Bxd6 {[%emt 0:05:02]} Qxd6 {[%emt 0:00:51]} 11. Nbd2 {[%emt 0:00:19]} O-O-O {[%emt 0:05:05]} 12. Qa4 {[%emt 0:01:42]} Qe6+ {[%emt 0:08:00]} 13. Kd1 {[%emt 0:00:45]} Kb8 {[%emt 0:01:26]} 14. Re1 {[%emt 0:02:20]} Bxf3+ {[%emt 0:03:10]} 15. Nxf3 {[%emt 0:00:22]} Qg4 {[%emt 0:02:48]} 16. Bf1 {[%emt 0:03:56]} Nc8 {[%emt 0:04:50]} 17. h3 Qf5 18. Qc2 {[%emt 0:01:35]} Qxc2+ {[%emt 0:04:20]} 19. Kxc2 {[%emt 0:00:06]} Nd6 {[%emt 0:00:29]} 20. Bd3 {[%emt 0:01:21]} Rde8 {[%emt 0:06:18]} 21. Nd2 {[%emt 0:05:22]} f5 {[%emt 0:05:19]} 22. g3 {[%emt 0:05:43]} g6 {[%emt 0:02:14]} 23. b4 {[%emt 0:04:01]} Kc8 {[%emt 0:03:47]} 24. Nf3 {[%emt 0:06:06]} Kd8 {[%emt 0:09:18]} 25. b5 {[%emt 0:02:48]} Na5 {[%emt 0:00:48]} 26. Ne5 {[%emt 0:01:43]} Re7 {[%emt 0:02:16]} 27. f4 {[%emt 0:05:48]} Rhe8 {[%emt 0:02:14]} 28. a4 {[%emt 0:02:33]} Ndc4 {[%emt 0:09:52]} 29. Bxc4 {[%emt 0:06:43]} Nxc4 {[%emt 0:00:31]} 30. a5 {[%emt 0:00:32]} Kc8 {[%emt 0:07:29]} 31. Reb1 {[%emt 0:07:01]} Re6 {[%emt 0:01:14]} 32. h4 b6 33. a6 1/2-1/2